Cogmind - Beta 13 @@@ ROGUE MODE // 2024.04.12 @ 12:57:43 Player: Conlarando Result: Destroyed by Y-45 Defender with Heavy Assault Rifle Performance ------------- Evolutions (0) 0 Regions Visited (2) 400 Robots Destroyed (33) 165 Value Destroyed (778) 778 Prototype IDs (4) 80 Alien Tech Used (0) 0 Bonus (85) 85 TOTAL SCORE: 1508 Bonus ------- Follower Combat Kills 85 Cogmind --------- Core Integrity 0/250 Matter 260/300 Energy 121/125 System Corruption 0% Temperature Cool (54) Movement Core (1500) Ox29 Location -10/Mines Parts ------- > --- POWER (1) -------- Light Ion Engine > --- PROPULSION (2) --- (None) > --- UTILITY (2) ------ Huge Storage Unit Signal Interpreter > --- WEAPON (2) ------- Light Cannon Light Cannon > --- INVENTORY (25) --- Light Angular Momentum Engine Light Treads Compact Wheel Flight Unit Flight Unit Flight Unit Flight Unit Flight Unit Flight Unit Improved Heat Sink Large Storage Unit ECM Suite Core Shielding Light Armor Plating Hacking Suite Medium Laser Light Assault Rifle Light Assault Rifle Grenade Launcher Peak State ------------ > --- POWER ------------ Light Nuclear Core > --- PROPULSION ------- Light Treads Light Treads > --- UTILITY ---------- Large Storage Unit Core Shielding > --- WEAPON ----------- Medium Laser Medium Laser > --- INVENTORY -------- Light Ion Engine Light Treads Light Treads Compact Wheel Flight Unit Signal Interpreter ECM Suite Light Assault Rifle Light Assault Rifle Grenade Launcher [Rating: 10] Favorites ----------- Power Light Ion Engine Engine Light Ion Engine Power Core Light Nuclear Core Propulsion Light Treads Treads Light Treads Utility Huge Storage Unit Storage Huge Storage Unit Processor Signal Interpreter Protection Core Shielding Weapon Light Cannon Energy Gun Medium Laser Ballistic Gun Light Assault Rifle Ballistic Cannon Light Cannon Launcher Grenade Launcher Build | -11 -10 -10 ------- Run | Yrd Mat Min Slots Evolved . | . . . Power . | . . . Propulsion . | . . . Utility . | . . . Weapon . | . . . Parts Attached 28 | 6 17 5 Power 3 | 1 2 . Engine 2 | 1 1 . Core 1 | . 1 . Reactor . | . . . Propulsion 6 | 2 4 . Treads 6 | 2 4 . Leg . | . . . Wheel . | . . . Hover . | . . . Flight . | . . . Utility 5 | 1 3 1 Device . | . . . Storage 3 | 1 2 . Processor 1 | . . 1 Hackware . | . . . Protection 1 | . 1 . Artifact . | . . . Weapon 14 | 2 8 4 Energy Gun 4 | . 4 . Energy Cannon . | . . . Ballistic Gun 6 | 2 4 . Ballistic Cannon 3 | . . 3 Launcher 1 | . . 1 Special Weapon . | . . . Impact Weapon . | . . . Slashing Weapon . | . . . Piercing Weapon . | . . . Special Melee Weapon . | . . . Unidentified Prototypes . | . . . Parts Lost 3 | . 2 1 Power 1 | . 1 . Propulsion 1 | . . 1 Utility . | . . . Weapon 1 | . 1 . Highest Loss Streak 1 | . 1 1 To Critical Strikes . | . . . Average Slot Usage (%) 95 | . 91 99 Engine 10 | . 7 14 Core 3 | . 5 . Treads 27 | . 28 27 Storage 14 | . 14 14 Processor 2 | . . 5 Protection 7 | . 7 8 Energy Gun 7 | . 12 . Ballistic Gun 9 | . 15 3 Ballistic Cannon 10 | . . 24 Naked Turns . | . . . Heaviest Build 90 | 12 86 90 Greatest Support 40 | 40 40 40 Greatest Overweight (x) 4 | . 2 4 Average Overweight (x) . | . . 2 Largest Inventory Capacity 25 | 8 25 25 Average Capacity 18 | 6 14 25 Most Carried 19 | 3 15 19 Average Carried 11 | 1 8 16 Final Capacity 25 | 8 25 25 Final Carried 19 | 3 15 19 Class Distribution -------------------- 100% | Mutant Dominant Class ---------------- Mutant | -10/Materials Mutant | -10/Mines Resources | -11 -10 -10 ----------- Run | Yrd Mat Min Matter Collected 684 | 242 353 89 Remotely . | . . . Salvage Created 932 | . 850 82 Parts 65 | . 57 8 Haulers Intercepted 1 | . 1 . Recyclers Shooed 2 | . 2 . Parts Field Recycled . | . . . Retrieved Matter . | . . . Parts Self-Destructed . | . . . Prevented . | . . . Kills | -11 -10 -10 ------- Run | Yrd Mat Min Combat Hostiles Destroyed 23 | . 18 5 Guns 16 | . 16 . Cannons 2 | . . 2 AOE 3 | . . 3 Classes Destroyed 8 | . 7 1 Worker 3 | . 3 . Builder 1 | . 1 . Hauler 1 | . 1 . Operator 2 | . 2 . Watcher 3 | . 3 . Swarmer 6 | . 3 3 Grunt 16 | . 15 1 Sentry 1 | . . 1 Best Kill Streak 5 | . 5 3 Combat Bots Only 4 | . 4 3 Max Kills in Single Turn 3 | . 2 3 Gunslinging 1 | . 1 . Exploded 3 | . . 3 Melee . | . . . Uniques/NPCs Destroyed . | . . . Combat | -11 -10 -10 -------- Run | Yrd Mat Min Hostile Shots Fired 150 | . 125 25 Missed 36 | . 28 8 Damage Taken 1241 | . 1034 207 Core 263 | . 179 84 Absorbed by Shields . | . . . Redirected to Shielding 20 | . 15 5 Core Remaining (%) 100 | 100 . . Volleys Fired 113 | . 104 9 Largest 2 | . 2 2 Hottest 100 | . 100 70 Shots Fired 218 | . 201 17 Gun 201 | . 201 . Cannon 16 | . . 16 Launcher 1 | . . 1 Special . | . . . Kinetic 116 | . 100 16 Thermal 101 | . 101 . Explosive 1 | . . 1 Electromagnetic . | . . . Robot Hit Streak 21 | . 21 17 Robot Miss Streak 6 | . 6 . Penetration Max . | . . . Secondary Targets 5 | . 5 . Max Gunslinging Chain 1 | . 1 . Shots Hit Robots 154 | . 138 16 Core Hits 61 | . 53 8 Critical Kills 1 | . 1 . Critical Parts Destroyed 1 | . 1 . Critical Strikes 9 | . 8 1 Burn 6 | . 6 . Destroy 2 | . 2 . Blast 1 | . . 1 Melee Attacks . | . . . Impact . | . . . Slashing . | . . . Piercing . | . . . Sneak Attacks . | . . . Combat Hostiles . | . . . Follow-up Attacks . | . . . Damage Inflicted 1845 | . 1482 363 Guns 1482 | . 1482 . Cannons 283 | . . 283 Explosions 80 | . . 80 Melee . | . . . Ramming . | . . . Kinetic 820 | . 537 283 Thermal 945 | . 945 . Explosive 80 | . . 80 Electromagnetic . | . . . Impact . | . . . Slashing . | . . . Piercing . | . . . Highest Corruption . | . . . Average Corruption . | . . . Corruption Purged . | . . . Corruption Blocked . | . . . Overload Shots . | . . . Overflow Damage . | . . . Projectiles . | . . . Explosions . | . . . Melee . | . . . Knockbacks 1 | . . 1 Impact . | . . . Kinetic 1 | . . 1 Secondary . | . . . Self-Inflicted Damage . | . . . Shots . | . . . Rammed . | . . . Targets Rammed . | . . . Kicked . | . . . Crushed . | . . . Highest Temperature 505 | . 505 54 Average Temperature 150 | . 159 28 Received Heat Transfer 513 | . 468 45 Effects 11 | . 11 . Shutdowns 4 | . 4 . Energy Bleed 2 | . 2 . Interference 1 | . 1 . Matter Decay 1 | . 1 . Damage (minor) 2 | . 2 . Damage (major) 1 | . 1 . Siege Activations . | . . . Robots Corrupted . | . . . Combat Hostiles . | . . . Parts Fried . | . . . Impact Corruptions . | . . . Robots Melted 2 | . 2 . Combat Hostiles 2 | . 2 . Parts Melted 7 | . 7 . Heat Transferred 3256 | . 3256 . Parts Sabotaged . | . . . Parts Stolen . | . . . Parts Stripped . | . . . Power Chain Reactions . | . . . Alert | -11 -10 -10 ------- Run | Yrd Mat Min Peak Influence 273 | . 273 176 Initial 61 | . . 61 Average 91 | . 132 44 Maximum Alert Level 1 | . 1 . Low Security (%) 92 | 100 87 100 Level 1 7 | . 12 . Level 2 . | . . . Level 3 . | . . . Level 4 . | . . . Level 5 . | . . . High Security . | . . . Max Security . | . . . Squads Dispatched 4 | . 4 . Investigation 2 | . 2 . Extermination . | . . . Reinforcement 2 | . 2 . Assault . | . . . Garrison . | . . . Intercept . | . . . Searches Triggered . | . . . Construction Impeded . | . . . Haulers Reinforced . | . . . Active Scanning Responses . | . . . Cargo Convoy Interrupts . | . . . Stealth | -11 -10 -10 --------- Run | Yrd Mat Min Distress Signals 1 | . 1 . Communications Jammed . | . . . Distress Signals . | . . . Times Spotted 40 | . 31 9 Peak Tracking Total 4 | . 4 3 Tactical Retreats 1 | . 1 . Traps | -11 -10 -10 ------- Run | Yrd Mat Min Traps Triggered . | . . . Indirectly . | . . . Trap Hack Attempts . | . . . Triggered . | . . . Disarmed . | . . . Reprogrammed . | . . . Reused . | . . . Traps Extracted . | . . . Installed . | . . . Triggered . | . . . Machines | -11 -10 -10 ---------- Run | Yrd Mat Min Machines Disabled . | . . . Max in Single Turn . | . . . Machines Repaired . | . . . Machines Dismantled . | . . . Machines Sabotaged . | . . . Overloaded Fab Kills . | . . . Hacking | -11 -10 -10 --------- Run | Yrd Mat Min Machines Accessed 6 | . 5 1 Terminals 4 | . 3 1 Fabricators . | . . . Repair Stations . | . . . Recycling Units 2 | . 2 . Scanalyzers . | . . . Garrison Access . | . . . Total Hacks 18 | . 13 5 Successful 7 | . 5 2 Failed 11 | . 8 3 Catastrophic 4 | . 3 1 Database Lockouts . | . . . Manual 10 | . 7 3 Terminals 15 | . 10 5 Fabricators . | . . . Repair Stations . | . . . Recycling Units 3 | . 3 . Scanalyzers . | . . . Garrison Access . | . . . Terminal Hacks 5 | . 3 2 Part Schematic 1 | . . 1 Prototype ID Bank 2 | . 2 . Locate Traps 1 | . 1 . Zone Layout 1 | . . 1 Fabricator Hacks . | . . . Repair Station Hacks . | . . . Recycling Unit Hacks 2 | . 2 . Retrieve Components 2 | . 2 . Scanalyzer . | . . . Garrison Access Hacks . | . . . Unauthorized Hacks . | . . . Terminals . | . . . Fabricators . | . . . Repair Stations . | . . . Recycling Units . | . . . Scanalyzers . | . . . Garrison Access . | . . . Data Cores Recovered . | . . . Used . | . . . Hacking Detections 5 | . 4 1 Full Trace Events 3 | . 2 1 Feedback Events . | . . . Feedback Blocked . | . . . Robot Schematics Acquired . | . . . Robots Built . | . . . Authchips . | . . . Time . | . . . Total Robot Build Rating . | . . . Part Schematics Acquired 1 | . . 1 Parts Built . | . . . Authchips . | . . . Time . | . . . Total Part Build Rating . | . . . Parts Repaired . | . . . Time . | . . . Parts Recycled . | . . . Recycled Matter . | . . . Retrieved Matter . | . . . Retrieved Components 20 | . 20 . Parts Scanalyzed . | . . . Part Schematics Acquired . | . . . Parts Damaged . | . . . Bothacking | -11 -10 -10 ------------ Run | Yrd Mat Min Used RIF Installer . | . . . Robots Hacked . | . . . Non-combat . | . . . Combat . | . . . Robot Hacks Applied . | . . . Relay Couplers Released . | . . . Fabnet Peak Effective % . | . . . Robots Rewired . | . . . Allies Hacked . | . . . Hacks Repelled . | . . . Allies | -11 -10 -10 -------- Run | Yrd Mat Min Total Allies 2 | . . 2 Largest Group 2 | . . 2 Highest-Rated Group 39 | . . 39 Highest-Rated Ally 31 | . . 31 Total Orders . | . . . Ally Attacks 12 | . . 12 Total Damage 190 | . . 190 Kills 3 | . . 3 Allies Corrupted . | . . . Allies Melted . | . . . Intel | -11 -10 -10 ------- Run | Yrd Mat Min Robot Analysis Total . | . . . Derelict Logs Recovered 1 | . . 1 Drone Launches . | . . . Drone Recoveries . | . . . Exploration | -11 -10 -10 ------------- Run | Yrd Mat Min Turns Passed 2823 | 82 1551 1190 Spaces Moved 1001 | 46 600 355 Core 2 | 2 . . Treads 999 | 44 600 355 Legs . | . . . Wheels . | . . . Hover . | . . . Flight . | . . . Fastest Speed 50 | 50 160 320 Average Speed 233 | 155 188 320 Slowest Speed 480 | 160 320 480 Overloaded Moves . | . . . Propulsion Burnouts . | . . . Robots Hopped . | . . . Cave-ins Triggered . | . . . Exploration Rate (%) 52 | 5 69 84 Regions Visited 2 Branch Regions 1 Pre-discovered Areas 1 | . . 1 Known Exits Taken . | . . . Unknown Exits Taken 2 | 1 1 . Scrap Searched 3 | . . 3 Spaces Dug . | . . . Terrain Destroyed 5 | . . 5 Melee . | . . . Projectile . | . . . AOE 5 | . . 5 Terrain Rammed . | . . . Walls Destroyed . | . . . Machines Disabled . | . . . Actions | -11 -10 -10 --------- Run | Yrd Mat Min Total 1284 | 54 838 392 Wait 114 | . 96 18 Move 999 | 45 599 355 Hop . | . . . Pick Up 19 | 3 14 2 Fast Attach 10 | 6 3 1 Attach 3 | . 2 1 Detach 4 | . 1 3 Swap 15 | . 12 3 Drop 7 | . 7 . Fire 113 | . 104 9 Melee . | . . . Ram . | . . . Kick . | . . . Crush . | . . . Escape Stasis . | . . . Rewire . | . . . Trap . | . . . Miscellaneous . | . . . Route ------- -11/Scrapyard -10/Materials (discovered 2 exits: *Mat / *Min) -10/Mines (discovered 1 exit: *Mat) History --------- Turn | Location | Event 6 | -11/Scrapyard | Discovered new exit (range 15) 83 | -11/Scrapyard | Entered Materials 303 | -10/Materials | Build established: Mutant 1240 | -10/Materials | Core integrity fell below 50% 1354 | -10/Materials | Discovered new exit (range 16) 1557 | -10/Materials | Discovered new exit (range 8) 1634 | -10/Materials | Entered Mines 1931 | -10/Mines | Discovered new exit (range 7) 2288 | -10/Mines | Core integrity fell below 20% 2347 | -10/Mines | Identified exit to Materials 2576 | -10/Mines | A weapon hastily lodged in a ceiling crevice suddenly fell to the ground 2824 | -10/Mines | Destroyed by Y-45 Defender with Heavy Assault Rifle Last Messages --------------- 01971_ R-06 Scavenger collects Aluminum Leg. 01975_ R-06 Scavenger collects Heat Sink. 02281_ G-34 Mercenary destroyed. 02283_ Y0-OCG(g) destroyed. 02286_ G-47 Trooper knocked back. 02289_ G-47 Trooper destroyed. 02296_ Acquired 24 matter. 02324_ Acquired Lgt. Angular Momentum Engine. 02341_ Acquired Imp. Heat Sink. 02347_ EXIT=IDENTIFIED: MATERIALS 02347_ Acquired 1 matter. 02350_ Acquired 9 matter. 02411_ Acquired derelict log, extracted data. World map updated: -10/Materials. 02576_ An Enh. Flamer has been hastily shoved under some rubble with a note attached: "One is never enough." 02805_ Lgt. Treads destroyed. 02815_ Y-45 Defender Beam Rifle blasted off. 02815_ Y-45 Defender destroyed. Map ----- +----------------------------------------------------+ | ????????????????????????????????????????????????? | | ????????????????????????????????????????????????? | | ????????????????????????????????????????????????? | | ??????????####??????????????????????????????????? | | ?????????## ##?????????????????????????????????? | | ???????### #?????????????????????????????????? | | ??????## #?????????????????????????????????? | | ??????# #?????????????????????????????????? | | ??????# ##????????????????????????????????? | | ??????#### ##???????????????????????????????? | | ?????????## ##??????????????????????????????? | | ??????????# #??????????????????????????????? | | ??????????## #??????????????????????????????? | | ???????????## #??????????????????????????????? | | ???????????## #???????????????????????####???? | | ??????????## ##??????????????????????## #??? | | ?????????## ##??????????????????????# ??? | | ?????????# ##?????????????????????# ##? | | ?????????# ##????????????????????# ## | | ?????????## #???######???????????? | | ??????????#### #???#" "##????????????? """ | | ?????????????## #???!! !!#??????????????# """ | | ???????????#### ##???! %[]#??????????????# """ | | ???????????# #### % #???????????????# | | ???????????# ## ##/Y###??????????????# ## | | ????####???# ## @[% %#??????????????# #? | | ??### ##??# ### % ##?????????????# #? | | ?## #### #?# #????????## ### #? | | ?# #### #???????# #? | | ?# #?# #??????# #### ## | | ?# #?## #??????# ?# | | ?## #??#### #?????# ?# | | ??## ### #?????## #????# ?# | | ???# ##?## #??????# #????# ?# | | ???# #??## #?????? #???## ######## | | ???# #### ##????? ##???# ##????? | | ???## | ## #????? ##???## #????# | | ????## ##???? ##???## ##??## | | ?????#### ##????? ####???## ##?# | | ????????## #?????? ##?????## #?# | | ???????### ##?????# #??????# ### | | ???????# #??????# ######## ### | | ???????# # #?????? ### | | ???????# # #?????? ?? ## | | ???????# # #????? ### ##### # | | ???????# # #????# ##?# #???# # | | ???????# ## #????####??# #???## # | | ???????# ### #??????????# #????### ### | | ???????# #??## #??????????# #??????## ##?## | | ???????# #????# #??????????# #???????# #??## | +----------------------------------------------------+ Best States ------------- Heat Dissipation 25 Energy Generation 14 Energy Capacity 250 Matter Stores 300 Matter Capacity 300 Sight Range 16 Terrain Scan Density 10 Core Shielding 20 Evasion (%) 40 Recoil Reduction 2 Item Schematics ----------------- Flight Unit | -10/Mines | Hacked Robot Schematics ------------------ None Fabricated ------------ Nothing Alien Tech Used ----------------- None Achievements -------------- None Challenges ------------ None Game ------ Seed BehemothRocketEdition Manual? 0 Play Time 00:16:01 Cumulative 3.7 hours Start 2024.04.11 @ 21:29:56 End 2024.04.12 @ 12:57:43 Sessions 2 Manual Loads 0 Difficulty Rogue Special Mode None Game No. 10 Rogue 10 Adventurer 0 Explorer 0 Win Type - Total 0 Types 0/0/0/0/0/0/0/0/0 Lore% 4 Gallery% 7 Achievement% 8 Wizard Run 0 Options --------- Layout 1 ASCII 0 Keyboard 0 Movement Mouse Keybinds 0 Fullscreen 1 Font 24/Terminus Map View 50x35 Zoom Use 0% Tactical HUD 1 Map Filters NONE Filters NONE Steam 1 RUN: eeaadded-fb20-4fe2-aa39-774199dd153d